Workbook

Sheet 1
A1: 重庆市规划和自然资源局所属事业单位 2023年第四季度公开招聘（公开遴选）进入面试资格复审人员名单
A2: 报考单位及职位 | B2: 姓名 | C2: 准考证号 | D2: 职业能力倾向测验成绩 | E2: 综合应用能力成绩 | F2: 专业科目 成绩 | G2: 总成绩 | H2: 笔试折合 总成绩 | I2: 排名
A3: 重庆市北碚不动产登记中心财务管理 | B3: 夏雯祺 | C3: 11900203912 | D3: 105 | E3: 106.5 | G3: 211.5 | H3: =ROUND((D3+E3)/3*50%,2) -> 35.25 | I3: 1
A4: 重庆市北碚不动产登记中心财务管理 | B4: 甘欣然 | C4: 11900200106 | D4: 124.5 | E4: 83 | G4: 207.5 | H4: =(D4+E4)/3*50% -> 34.58 | I4: 2
A5: 重庆市北碚不动产登记中心财务管理 | B5: 余燕 | C5: 11900304208 | D5: 103.5 | E5: 100 | G5: 203.5 | H5: 33.92 | I5: 3
A6: 重庆市北碚不动产登记中心宣传 | B6: 于金玉 | C6: 11900202225 | D6: 114 | E6: 94.5 | G6: 208.5 | H6: 34.75 | I6: 1
A7: 重庆市北碚不动产登记中心宣传 | B7: 江婷婷 | C7: 11900107203 | D7: 109.5 | E7: 95 | G7: 204.5 | H7: 34.08 | I7: 2
A8: 重庆市北碚不动产登记中心宣传 | B8: 李秋灵 | C8: 11900202926 | D8: 105 | E8: 94.5 | G8: 199.5 | H8: 33.25 | I8: 3
A9: 重庆市北碚规划和自然资源事务中心建筑规划 | B9: 米姝颖 | C9: 31901002801 | D9: 105 | E9: 119.5 | F9: 49 | G9: 273.5 | H9: =ROUND((D9+E9)/3*40%+F9*20%,2) -> 39.73 | I9: 1
A10: 重庆市北碚规划和自然资源事务中心建筑规划 | B10: 陈珉佳 | C10: 31901002609 | D10: 99 | E10: 107.5 | F10: 59 | G10: 265.5 | H10: 39.33 | I10: 2
A11: 重庆市北碚规划和自然资源事务中心建筑规划 | B11: 徐伦峰 | C11: 31901002813 | D11: 105 | E11: 109.5 | F11: 48 | G11: 262.5 | H11: 38.20 | I11: 3
A12: 重庆市长寿区矿产资源管理所矿业管理 | B12: 彭琪 | C12: 31901004622 | D12: 106.5 | E12: 101 | F12: 46 | G12: 253.5 | H12: 36.87 | I12: 1
A13: 重庆市长寿区矿产资源管理所矿业管理 | B13: 王源 | C13: 31901004629 | D13: 85.5 | E13: 108.5 | F13: 54.5 | G13: 248.5 | H13: 36.77 | I13: 2
A14: 重庆市长寿区矿产资源管理所矿业管理 | B14: 黄林聪 | C14: 31901004630 | D14: 93 | E14: 103 | F14: 44 | G14: 240 | H14: 34.93 | I14: 3
A15: 重庆市长寿区土地房屋勘测规划院规划管理 | B15: 南田田 | C15: 31901004007 | D15: 105 | E15: 116.5 | F15: 52.5 | G15: 274 | H15: 40.03 | I15: 1
A16: 重庆市长寿区土地房屋勘测规划院规划管理 | B16: 何乐 | C16: 31901003904 | D16: 97.5 | E16: 105.5 | F16: 62 | G16: 265 | H16: 39.47 | I16: 2
A17: 重庆市长寿区土地房屋勘测规划院规划管理 | B17: 余金勤 | C17: 31901003804 | D17: 99 | E17: 110 | F17: 54.5 | G17: 263.5 | H17: 38.77 | I17: 3
A18: 重庆市涪陵区不动产登记中心地籍调查 | B18: 王林 | C18: 31901003212 | D18: 93 | E18: 104 | F18: 52.5 | G18: 249.5 | H18: 36.77 | I18: 1
A19: 重庆市涪陵区不动产登记中心地籍调查 | B19: 郑彤 | C19: 31901002914 | D19: 88.5 | E19: 93 | F19: 53 | G19: 234.5 | H19: 34.80 | I19: 2
A20: 重庆市涪陵区不动产登记中心地籍调查 | B20: 曹鑫 | C20: 31901003209 | D20: 73.5 | E20: 105 | F20: 49 | G20: 227.5 | H20: 33.60 | I20: 3
A21: 重庆市涪陵区不动产登记中心建筑规划 | B21: 谭雪平 | C21: 31901002423 | D21: 84 | E21: 118.5 | F21: 50.5 | G21: 253 | H21: 37.10 | I21: 1
A22: 重庆市涪陵区不动产登记中心建筑规划 | B22: 王宇嘉 | C22: 31901002723 | D22: 87 | E22: 110.5 | F22: 52.5 | G22: 250 | H22: 36.83 | I22: 2
A23: 重庆市涪陵区不动产登记中心建筑规划 | B23: 吴晓宇 | C23: 31901002730 | D23: 88.5 | E23: 116.5 | F23: 46.5 | G23: 251.5 | H23: 36.63 | I23: 3
A24: 重庆市涪陵区不动产登记中心建筑规划 | B24: 朱晓珊 | C24: 31901002706 | D24: 96 | E24: 109 | F24: 46 | G24: 251 | H24: 36.53 | I24: 4
A25: 重庆市涪陵区不动产登记中心建筑规划 | B25: 张婷婷 | C25: 31901002714 | D25: 97.5 | E25: 107 | F25: 45 | G25: 249.5 | H25: 36.27 | I25: 5
A26: 重庆市涪陵区不动产登记中心建筑规划 | B26: 沈恩穗 | C26: 31901002718 | D26: 93 | E26: 123 | F26: 36.5 | G26: 252.5 | H26: 36.10 | I26: 6
A27: 重庆市涪陵区规划服务中心建筑规划 | B27: 田涵 | C27: 31901002223 | D27: 85.5 | E27: 109.5 | F27: 43 | G27: 238 | H27: 34.60 | I27: 1
A28: 重庆市涪陵区规划服务中心建筑规划 | B28: 晏子云 | C28: 31901002826 | D28: 78 | E28: 98.5 | F28: 55 | G28: 231.5 | H28: 34.53 | I28: 2
A29: 重庆市涪陵区规划服务中心建筑规划 | B29: 杨兰 | C29: 31901002630 | D29: 73.5 | E29: 104 | F29: 38 | G29: 215.5 | H29: 31.27 | I29: 3
A30: 重庆市涪陵区规划和自然资源局基层所建筑规划 | B30: 陈凯 | C30: 11900401722 | D30: 93 | E30: 100.5 | G30: 193.5 | H30: =(D30+E30)/3*50% -> 32.25 | I30: 1
A31: 重庆市涪陵区规划和自然资源局基层所建筑规划 | B31: 任静 | C31: 11900108712 | D31: 91.5 | E31: 96 | G31: 187.5 | H31: 31.25 | I31: 2
A32: 重庆市涪陵区规划和自然资源局基层所建筑规划 | B32: 张馨予 | C32: 11900100304 | D32: 96 | E32: 87.5 | G32: 183.5 | H32: 30.58 | I32: 3
A33: 重庆市涪陵区农村土地整治流转服务中心土地管理 | B33: 张培华 | C33: 31901003009 | D33: 93 | E33: 115 | F33: 50 | G33: 258 | H33: =ROUND((D33+E33)/3*40%+F33*20%,2) -> 37.73 | I33: 1
A34: 重庆市涪陵区农村土地整治流转服务中心土地管理 | B34: 赵珊 | C34: 31901003129 | D34: 100.5 | E34: 107.5 | F34: 47 | G34: 255 | H34: 37.13 | I34: 2
A35: 重庆市涪陵区农村土地整治流转服务中心土地管理 | B35: 冉龙池 | C35: 31901003016 | D35: 90 | E35: 101.5 | F35: 41 | G35: 232.5 | H35: 33.73 | I35: 3
A36: 重庆市江北不动产登记中心软件设计与数据分析 | B36: 王菁 | C36: 31900700318 | D36: 114 | E36: 113 | G36: 227 | H36: =(D36+E36)/3*50% -> 37.83 | I36: 1
A37: 重庆市江北不动产登记中心软件设计与数据分析 | B37: 何乐为 | C37: 31900700513 | D37: 108 | E37: 115 | G37: 223 | H37: 37.17 | I37: 2
A38: 重庆市江北不动产登记中心软件设计与数据分析 | B38: 陈雅琦 | C38: 31900801614 | D38: 109.5 | E38: 112 | G38: 221.5 | H38: 36.92 | I38: 3
A39: 重庆市江北区规划和自然资源局基层所测绘管理 | B39: 陈林川 | C39: 31901004313 | D39: 82.5 | E39: 113 | F39: 67 | G39: 262.5 | H39: =ROUND((D39+E39)/3*40%+F39*20%,2) -> 39.47 | I39: 1
A40: 重庆市江北区规划和自然资源局基层所测绘管理 | B40: 张浩 | C40: 31901004327 | D40: 102 | E40: 94 | F40: 63.5 | G40: 259.5 | H40: 38.83 | I40: 2
A41: 重庆市江北区规划和自然资源局基层所测绘管理 | B41: 李明丽 | C41: 31901004402 | D41: 84 | E41: 103.5 | F41: 66 | G41: 253.5 | H41: 38.20 | I41: 3
A42: 重庆市江北区规划和自然资源局基层所宣传 | B42: 陈立园 | C42: 11900401223 | D42: 106.5 | E42: 96.5 | G42: 203 | H42: =(D42+E42)/3*50% -> 33.83 | I42: 1
A43: 重庆市江北区规划和自然资源局基层所宣传 | B43: 唐帆 | C43: 11900301226 | D43: 106.5 | E43: 93.5 | G43: 200 | H43: 33.33 | I43: 2
A44: 重庆市江北区规划和自然资源局基层所宣传 | B44: 陈小未 | C44: 11900401122 | D44: 109.5 | E44: 89.5 | G44: 199 | H44: 33.17 | I44: 3
A45: 重庆市江津区不动产登记中心登记审查 | B45: 罗岭 | C45: 11900201515 | D45: 108 | E45: 96.5 | G45: 204.5 | H45: 34.08 | I45: 1
A46: 重庆市江津区不动产登记中心登记审查 | B46: 廉子瀚 | C46: 11900301103 | D46: 115.5 | E46: 85.5 | G46: 201 | H46: 33.50 | I46: 2
A47: 重庆市江津区不动产登记中心登记审查 | B47: 王楠鑫 | C47: 11900204203 | D47: 108 | E47: 91.5 | G47: 199.5 | H47: 33.25 | I47: 3
A48: 重庆市江津区不动产登记中心登记审查 | B48: 余娇 | C48: 11900205121 | D48: 91.5 | E48: 105.5 | G48: 197 | H48: 32.83 | I48: 4
A49: 重庆市江津区不动产登记中心登记审查 | B49: 陈华江 | C49: 11900403227 | D49: 109.5 | E49: 87.5 | G49: 197 | H49: 32.83 | I49: 4
A50: 重庆市江津区不动产登记中心登记审查 | B50: 余隆艺 | C50: 11900101401 | D50: 94.5 | E50: 102 | G50: 196.5 | H50: 32.75 | I50: 6
A51: 重庆市江津区规划和自然资源局基层所自然资源 | B51: 王语桐 | C51: 11900402408 | D51: 85.5 | E51: 107 | G51: 192.5 | H51: 32.08 | I51: 1
A52: 重庆市江津区规划和自然资源局基层所自然资源 | B52: 付承玉 | C52: 11900107430 | D52: 105 | E52: 87 | G52: 192 | H52: 32.00 | I52: 2
A53: 重庆市江津区规划和自然资源局基层所自然资源 | B53: 李振 | C53: 11900102805 | D53: 103.5 | E53: 85.5 | G53: 189 | H53: 31.50 | I53: 3
A54: 重庆市九龙坡区规划和自然资源局基层所建筑规划 | B54: 潘圆月 | C54: 31901002007 | D54: 103.5 | E54: 108 | F54: 52 | G54: 263.5 | H54: =ROUND((D54+E54)/3*40%+F54*20%,2) -> 38.60 | I54: 1
A55: 重庆市九龙坡区规划和自然资源局基层所建筑规划 | B55: 郭明轩 | C55: 31901002529 | D55: 105 | E55: 112.5 | F55: 47.5 | G55: 265 | H55: 38.50 | I55: 2
A56: 重庆市九龙坡区规划和自然资源局基层所建筑规划 | B56: 郑科 | C56: 31901002506 | D56: 111 | E56: 106 | F56: 46 | G56: 263 | H56: 38.13 | I56: 3
A57: 重庆市九龙坡区规划和自然资源局基层所土地管理 | B57: 王婷 | C57: 31901004510 | D57: 109.5 | E57: 109 | F57: 52 | G57: 270.5 | H57: 39.53 | I57: 1
A58: 重庆市九龙坡区规划和自然资源局基层所土地管理 | B58: 张力丹 | C58: 31901003210 | D58: 105 | E58: 113 | F58: 49.5 | G58: 267.5 | H58: 38.97 | I58: 2
A59: 重庆市九龙坡区规划和自然资源局基层所土地管理 | B59: 黄涛 | C59: 31901003108 | D59: 100.5 | E59: 112 | F59: 52.5 | G59: 265 | H59: 38.83 | I59: 3
A60: 重庆市南川区不动产登记中心财务管理 | B60: 蔡成红 | C60: 11900106108 | D60: 93 | E60: 101 | G60: 194 | H60: =(D60+E60)/3*50% -> 32.33 | I60: 1
A61: 重庆市南川区不动产登记中心财务管理 | B61: 赵佳莉 | C61: 11900109227 | D61: 93 | E61: 99 | G61: 192 | H61: 32.00 | I61: 2
A62: 重庆市南川区不动产登记中心财务管理 | B62: 钟妮夏 | C62: 11900202220 | D62: 105 | E62: 86.5 | G62: 191.5 | H62: 31.92 | I62: 3
A63: 重庆市南川区不动产登记中心建筑项目管理 | B63: 郭鹏 | C63: 11900301118 | D63: 100.5 | E63: 107 | G63: 207.5 | H63: 34.58 | I63: 1
A64: 重庆市南川区不动产登记中心建筑项目管理 | B64: 邵一伦 | C64: 11900401129 | D64: 94.5 | E64: 105.5 | G64: 200 | H64: 33.33 | I64: 2
A65: 重庆市南川区不动产登记中心建筑项目管理 | B65: 杨旦旦 | C65: 11900102421 | D65: 102 | E65: 93.5 | G65: 195.5 | H65: 32.58 | I65: 3
A66: 重庆市南川区规划和自然资源局基层所测绘管理 | B66: 陈祖岸 | C66: 31901004316 | D66: 96 | E66: 103 | F66: 55 | G66: 254 | H66: =ROUND((D66+E66)/3*40%+F66*20%,2) -> 37.53 | I66: 1
A67: 重庆市南川区规划和自然资源局基层所测绘管理 | B67: 陈佳 | C67: 31901004309 | D67: 97.5 | E67: 88.5 | F67: 61.5 | G67: 247.5 | H67: 37.10 | I67: 2
A68: 重庆市南川区规划和自然资源局基层所测绘管理 | B68: 陈远红 | C68: 31901004314 | D68: 88.5 | E68: 102 | F68: 53 | G68: 243.5 | H68: 36.00 | I68: 3
A69: 重庆市南川区规划和自然资源局基层所工程管理 | B69: 段思平 | C69: 11900103301 | D69: 105 | E69: 98 | G69: 203 | H69: =(D69+E69)/3*50% -> 33.83 | I69: 1
A70: 重庆市南川区规划和自然资源局基层所工程管理 | B70: 汪杰 | C70: 11900102510 | D70: 105 | E70: 95.5 | G70: 200.5 | H70: 33.42 | I70: 2
A71: 重庆市南川区规划和自然资源局基层所工程管理 | B71: 龚俊豪 | C71: 11900300914 | D71: 100.5 | E71: 98.5 | G71: 199 | H71: 33.17 | I71: 3
A72: 重庆市南川区规划和自然资源局基层所建筑规划 | B72: 唐宇飞 | C72: 11900100408 | D72: 106.5 | E72: 90 | G72: 196.5 | H72: 32.75 | I72: 1
A73: 重庆市南川区规划和自然资源局基层所建筑规划 | B73: 陈跃东 | C73: 11900400503 | D73: 94.5 | E73: 101 | G73: 195.5 | H73: 32.58 | I73: 2
A74: 重庆市南川区规划和自然资源局基层所建筑规划 | B74: 侯妍羽 | C74: 11900300507 | D74: 102 | E74: 93.5 | G74: 195.5 | H74: 32.58 | I74: 2
A75: 重庆市南川区规划和自然资源局基层所土地管理 | B75: 冉志勇 | C75: 11900403120 | D75: 105 | E75: 101.5 | G75: 206.5 | H75: 34.42 | I75: 1
A76: 重庆市南川区规划和自然资源局基层所土地管理 | B76: 田彪 | C76: 11900301422 | D76: 109.5 | E76: 96.5 | G76: 206 | H76: 34.33 | I76: 2
A77: 重庆市南川区规划和自然资源局基层所土地管理 | B77: 卢明波 | C77: 11900103715 | D77: 106.5 | E77: 94.5 | G77: 201 | H77: 33.50 | I77: 3
A78: 重庆市南川区规划和自然资源局基层所土地管理 | B78: 何陶 | C78: 11900304304 | D78: 115.5 | E78: 84 | G78: 199.5 | H78: 33.25 | I78: 4
A79: 重庆市南川区规划和自然资源局基层所土地管理 | B79: 王云波 | C79: 11900102922 | D79: 105 | E79: 93.5 | G79: 198.5 | H79: 33.08 | I79: 5
A80: 重庆市南川区规划和自然资源局基层所土地管理 | B80: 周云川 | C80: 11900203526 | D80: 112.5 | E80: 84.5 | G80: 197 | H80: 32.83 | I80: 6
A81: 重庆市南川区规划和自然资源局基层所土地管理 | B81: 田露 | C81: 11900108301 | D81: 105 | E81: 91 | G81: 196 | H81: 32.67 | I81: 7
A82: 重庆市南川区规划和自然资源局基层所土地管理 | B82: 张柯蓉 | C82: 11900105421 | D82: 93 | E82: 101.5 | G82: 194.5 | H82: 32.42 | I82: 8
A83: 重庆市南川区规划和自然资源局基层所土地管理 | B83: 陈慧 | C83: 11900102312 | D83: 97.5 | E83: 95.5 | G83: 193 | H83: 32.17 | I83: 9
A84: 重庆市南川区土地储备整治中心工程管理 | B84: 王印 | C84: 31901003515 | D84: 105 | E84: 112 | F84: 55.5 | G84: 272.5 | H84: =ROUND((D84+E84)/3*40%+F84*20%,2) -> 40.03 | I84: 1
A85: 重庆市南川区土地储备整治中心工程管理 | B85: 杨奕淇 | C85: 31901003421 | D85: 88.5 | E85: 111 | F85: 65.5 | G85: 265 | H85: 39.70 | I85: 2
A86: 重庆市南川区土地储备整治中心工程管理 | B86: 何烽源 | C86: 31901003528 | D86: 88.5 | E86: 98 | F86: 62 | G86: 248.5 | H86: 37.27 | I86: 3
A87: 重庆市綦江区不动产登记中心法务 | B87: 王岚 | C87: 11900201503 | D87: 105 | E87: 102 | G87: 207 | H87: =(D87+E87)/3*50% -> 34.50 | I87: 1
A88: 重庆市綦江区不动产登记中心法务 | B88: 刘美琳 | C88: 11900106405 | D88: 103.5 | E88: 101.5 | G88: 205 | H88: 34.17 | I88: 2
A89: 重庆市綦江区不动产登记中心法务 | B89: 申纯一 | C89: 11900101912 | D89: 99 | E89: 101 | G89: 200 | H89: 33.33 | I89: 3
A90: 重庆市綦江区土地储备整治中心土地储备整治 | B90: 周思存 | C90: 11900106409 | D90: 108 | E90: 99 | G90: 207 | H90: 34.50 | I90: 1
A91: 重庆市綦江区土地储备整治中心土地储备整治 | B91: 张飘飘 | C91: 11900400209 | D91: 106.5 | E91: 97.5 | G91: 204 | H91: 34.00 | I91: 2
A92: 重庆市綦江区土地储备整治中心土地储备整治 | B92: 彭悦 | C92: 11900204923 | D92: 108 | E92: 95 | G92: 203 | H92: 33.83 | I92: 3
A93: 重庆市荣昌区规划和自然资源局基层所工程管理 | B93: 刘睿 | C93: 31901003705 | D93: 88.5 | E93: 117 | F93: 51.5 | G93: 257 | H93: =ROUND((D93+E93)/3*40%+F93*20%,2) -> 37.70 | I93: 1
A94: 重庆市荣昌区规划和自然资源局基层所工程管理 | B94: 吴小萍 | C94: 31901003505 | D94: 103.5 | E94: 107.5 | F94: 47 | G94: 258 | H94: 37.53 | I94: 2
A95: 重庆市荣昌区规划和自然资源局基层所工程管理 | B95: 刘昶 | C95: 31901003613 | D95: 81 | E95: 105.5 | F95: 62 | G95: 248.5 | H95: 37.27 | I95: 3
A96: 重庆市荣昌区规划和自然资源局基层所土木工程 | B96: 王治林 | C96: 31901004522 | D96: 96 | E96: 112 | F96: 56.5 | G96: 264.5 | H96: 39.03 | I96: 1
A97: 重庆市荣昌区规划和自然资源局基层所土木工程 | B97: 刘畅 | C97: 31901004521 | D97: 88.5 | E97: 108.5 | F97: 59.5 | G97: 256.5 | H97: 38.17 | I97: 2
A98: 重庆市荣昌区规划和自然资源局基层所土木工程 | B98: 谭友淋 | C98: 31901004112 | D98: 91.5 | E98: 100.5 | F98: 62 | G98: 254 | H98: 38.00 | I98: 3
A99: 重庆市铜梁区不动产登记中心测绘管理 | B99: 李武 | C99: 11900400402 | D99: 90 | E99: 96 | G99: 186 | H99: =(D99+E99)/3*50% -> 31.00 | I99: 1
A100: 重庆市铜梁区不动产登记中心测绘管理 | B100: 孙家慧 | C100: 11900404018 | D100: 90 | E100: 95 | G100: 185 | H100: 30.83 | I100: 2
A101: 重庆市铜梁区不动产登记中心测绘管理 | B101: 张江华 | C101: 11900403129 | D101: 79.5 | E101: 97 | G101: 176.5 | H101: 29.42 | I101: 3
A102: 重庆市铜梁区不动产登记中心软件设计与数据分析 | B102: 曲金磊 | C102: 11900103813 | D102: 103.5 | E102: 95 | G102: 198.5 | H102: 33.08 | I102: 1
A103: 重庆市铜梁区不动产登记中心软件设计与数据分析 | B103: 李雨潼 | C103: 11900109323 | D103: 94.5 | E103: 100.5 | G103: 195 | H103: 32.50 | I103: 2
A104: 重庆市铜梁区不动产登记中心软件设计与数据分析 | B104: 郭浩 | C104: 11900202305 | D104: 96 | E104: 97 | G104: 193 | H104: 32.17 | I104: 3
A105: 重庆市永川区规划和自然资源局城区规划和自然资源所财务管理 | B105: 王渝杰 | C105: 11900102701 | D105: 114 | E105: 103.5 | G105: 217.5 | H105: 36.25 | I105: 1
A106: 重庆市永川区规划和自然资源局城区规划和自然资源所财务管理 | B106: 秦小琴 | C106: 11900107623 | D106: 94.5 | E106: 118 | G106: 212.5 | H106: 35.42 | I106: 2
A107: 重庆市永川区规划和自然资源局城区规划和自然资源所财务管理 | B107: 汪欣 | C107: 11900304522 | D107: 105 | E107: 102.5 | G107: 207.5 | H107: 34.58 | I107: 3
A108: 重庆市永川区规划和自然资源局城区规划和自然资源所规划管理 | B108: 苏宗莲 | C108: 31901003820 | D108: 100.5 | E108: 112 | F108: 45.5 | G108: 258 | H108: =ROUND((D108+E108)/3*40%+F108*20%,2) -> 37.43 | I108: 1
A109: 重庆市永川区规划和自然资源局城区规划和自然资源所规划管理 | B109: 魏世霜 | C109: 31901003910 | D109: 100.5 | E109: 111 | F109: 45 | G109: 256.5 | H109: 37.20 | I109: 2
A110: 重庆市永川区规划和自然资源局城区规划和自然资源所规划管理 | B110: 贺云洁 | C110: 31901003720 | D110: 96 | E110: 99.5 | F110: 52.5 | G110: 248 | H110: 36.57 | I110: 3
A111: 重庆市渝中区规划和自然资源局基层规划和自然资源所地质管理 | B111: 王圆元 | C111: 31901004609 | D111: 94.5 | E111: 118 | F111: 49 | G111: 261.5 | H111: 38.13 | I111: 1
A112: 重庆市渝中区规划和自然资源局基层规划和自然资源所地质管理 | B112: 赵正起 | C112: 31901004209 | D112: 103.5 | E112: 108 | F112: 44 | G112: 255.5 | H112: 37.00 | I112: 2
A113: 重庆市渝中区规划和自然资源局基层规划和自然资源所地质管理 | B113: 唐俊 | C113: 31901004228 | D113: 93 | E113: 111 | F113: 49 | G113: 253 | H113: 37.00 | I113: 2
A114: 重庆市渝中区规划和自然资源局基层规划和自然资源所会计 | B114: 凌慧娟 | C114: 21900602522 | D114: 114 | E114: 103 | G114: 217 | H114: =(D114+E114)/3*50% -> 36.17 | I114: 1
A115: 重庆市渝中区规划和自然资源局基层规划和自然资源所会计 | B115: 张焱瑶 | C115: 21900603322 | D115: 105 | E115: 104 | G115: 209 | H115: 34.83 | I115: 2
A116: 重庆市渝中区规划和自然资源局基层规划和自然资源所会计 | B116: 吴明哲 | C116: 21900603023 | D116: 102 | E116: 102 | G116: 204 | H116: 34.00 | I116: 3
A117: 重庆市渝中区规划和自然资源局基层规划和自然资源所建筑规划1 | B117: 傅小峰 | C117: 11900402107 | D117: 114 | E117: 94.5 | G117: 208.5 | H117: 34.75 | I117: 1
A118: 重庆市渝中区规划和自然资源局基层规划和自然资源所建筑规划1 | B118: 戴喆轩 | C118: 11900106809 | D118: 111 | E118: 96.5 | G118: 207.5 | H118: 34.58 | I118: 2
A119: 重庆市渝中区规划和自然资源局基层规划和自然资源所建筑规划1 | B119: 刘巧 | C119: 11900202919 | D119: 102 | E119: 101.5 | G119: 203.5 | H119: 33.92 | I119: 3
A120: 重庆市渝中区规划和自然资源局基层规划和自然资源所建筑规划1 | B120: 王蟹余 | C120: 11900101025 | D120: 96 | E120: 107.5 | G120: 203.5 | H120: 33.92 | I120: 3
A121: 重庆市渝中区规划和自然资源局基层规划和自然资源所建筑规划2 | B121: 刘佐稚 | C121: 31901002324 | D121: 100.5 | E121: 109.5 | F121: 59 | G121: 269 | H121: =ROUND((D121+E121)/3*40%+F121*20%,2) -> 39.80 | I121: 1
A122: 重庆市渝中区规划和自然资源局基层规划和自然资源所建筑规划2 | B122: 侯均 | C122: 31901002323 | D122: 97.5 | E122: 119.5 | F122: 53 | G122: 270 | H122: =ROUND((D122+E122)/3*40%+F122*20%,2) -> 39.53 | I122: 2
A123: 重庆市渝中区规划和自然资源局基层规划和自然资源所建筑规划2 | B123: 陈周 | C123: 31901002209 | D123: 106.5 | E123: 112 | F123: 47 | G123: 265.5 | H123: 38.53 | I123: 3
A124: 重庆市渝中区规划和自然资源局基层规划和自然资源所建筑规划2 | B124: 王思蕴 | C124: 31901002623 | D124: 99 | E124: 107.5 | F124: 54.5 | G124: 261 | H124: 38.43 | I124: 4
A125: 重庆市渝中区规划和自然资源局基层规划和自然资源所建筑规划2 | B125: 张肖寒 | C125: 31901002103 | D125: 91.5 | E125: 117 | F125: 53 | G125: 261.5 | H125: 38.40 | I125: 5
A126: 重庆市渝中区规划和自然资源局基层规划和自然资源所建筑规划2 | B126: 杨滨源 | C126: 31901002610 | D126: 99 | E126: 107.5 | F126: 53.5 | G126: 260 | H126: 38.23 | I126: 6
A127: （遴选）铜梁区不动产登记中心文秘 | B127: 邱春雷 | C127: 11911005920 | D127: 91.5 | E127: 91.5 | G127: 183 | H127: =(D127+E127)/3*50% -> 30.50 | I127: 1
A128: （遴选）铜梁区不动产登记中心文秘 | B128: 刘欢 | C128: 11911006113 | D128: 84 | E128: 91 | G128: 175 | H128: 29.17 | I128: 2
A129: （遴选）铜梁区不动产登记中心文秘 | B129: 刘欣 | C129: 11911006129 | D129: 87 | E129: 84 | G129: 171 | H129: 28.50 | I129: 3
A130: （遴选）铜梁区城乡规划设计室测绘管理 | B130: 胡绍凯 | C130: 31911004702 | D130: 60 | E130: 39.5 | F130: 50.5 | G130: 150 | H130: =ROUND((D130+E130)/3*40%+F130*20%,2) -> 23.37 | I130: 1
